Cogmind - Beta 9.1 @@@ ROGUE MODE // 2019.11.12 @ 00:48:24 Player: Trione Result: Destroyed by Y-45 Defender with Beam Rifle Performance ------------- Evolutions (2) 1000 Regions Visited (5) 1000 Robots Destroyed (52) 260 Value Destroyed (1022) 1022 Prototype IDs (27) 540 Alien Tech Used (0) 0 Bonus (300) 300 TOTAL SCORE: 4122 Bonus ------- Aligned with FarCom 300 Cogmind --------- Core Integrity 0/550 Matter 264/300 Energy 99/100 System Corruption 9% Temperature Cool (9) Location -8/Materials Parts ------- Power (1) Propulsion (2) Armored Wheel Armored Wheel Utility (5) Large Storage Unit Large Storage Unit High-capacity Storage Unit High-capacity Storage Unit Hardened Light Armor Plating Weapon (3) Heavy Particle Gun Great Maul Great Maul Inventory (32) Light Nuclear Core Light Nuclear Core Light Nuclear Core Light Treads Armored Wheel Armored Wheel Improved Heat Sink High-capacity Storage Unit Superbattery (2000) Advanced Signal Interpreter Heavy Armor Plating Hardened Light Armor Plating Hardened Light Armor Plating Supersonic Drone Bay (1/1) Heavy Particle Gun Heavy Particle Gun Light EM Pulse Cannon Light EM Pulse Cannon Light EM Pulse Cannon Particle Cannon Heavy Particle Cannon Gauss Rifle Light Cannon Assault Cannon AWS/Autocannon Rocket Launcher Mini Grenade Launcher Mini Grenade Launcher Improved Datajack Peak State ------------ Power Light Nuclear Core Propulsion Armored Wheel Armored Wheel Utility Large Storage Unit Large Storage Unit High-capacity Storage Unit High-capacity Storage Unit Hardened Medium Armor Plating Weapon Gauss Rifle Assault Cannon Mining Claw Inventory Light Ion Engine Light Nuclear Core Light Treads Armored Wheel Armored Wheel Improved Heat Sink High-capacity Storage Unit Superbattery Advanced Signal Interpreter Heavy Armor Plating Hardened Light Armor Plating Hardened Light Armor Plating Hardened Light Armor Plating Supersonic Drone Bay Particle Gun Particle Gun Light EM Pulse Cannon Light EM Pulse Cannon Light EM Pulse Cannon Particle Cannon Heavy Particle Cannon Light Cannon AWS/Autocannon Rocket Launcher Mini Grenade Launcher Mini Grenade Launcher Improved Datajack Great Maul Great Maul [Rating: 32] Favorites ----------- Power Light Nuclear Core Engine Light Ion Engine Power Core Light Nuclear Core Propulsion Wheel Wheel Wheel Utility Large Storage Unit Storage Large Storage Unit Protection Hardened Light Armor Plating Weapon Mining Claw Energy Gun Heavy Particle Gun Energy Cannon Particle Cannon Ballistic Gun Light Assault Rifle Ballistic Cannon Light Cannon Launcher Mini Grenade Launcher Impact Weapon Great Maul Slashing Weapon Mining Claw Build | -11 -10 -10 -10 -9 -8 ------- Run | Scr Mat Min Exi Min Mat Slots Evolved 4 | . . . . . 4 Power . | . . . . . . Propulsion . | . . . . . . Utility 3 | . . . . . 3 Weapon 1 | . . . . . 1 Parts Attached 86 | 6 21 14 2 5 38 Power 7 | 1 2 2 . . 2 Engine 4 | 1 1 1 . . 1 Core 3 | . 1 1 . . 1 Reactor . | . . . . . . Propulsion 17 | 2 2 5 . 1 7 Treads . | . . . . . . Leg . | . . . . . . Wheel 17 | 2 2 5 . 1 7 Hover . | . . . . . . Flight . | . . . . . . Utility 16 | 1 7 . 2 . 6 Device . | . . . . . . Storage 10 | 1 5 . 2 . 2 Processor . | . . . . . . Hackware . | . . . . . . Protection 6 | . 2 . . . 4 Artifact . | . . . . . . Weapon 46 | 2 10 7 . 4 23 Energy Gun 3 | 1 1 . . . 1 Energy Cannon 5 | . . 2 . . 3 Ballistic Gun 15 | 1 4 . . 1 9 Ballistic Cannon 6 | . 1 3 . 1 1 Launcher 5 | . . 1 . 2 2 Special Weapon . | . . . . . . Impact Weapon 3 | . . . . . 3 Slashing Weapon 9 | . 4 1 . . 4 Piercing Weapon . | . . . . . . Special Melee Weapon . | . . . . . . Unidentified Prototypes 2 | . . . . . 2 Parts Lost 19 | . 1 6 . 1 11 Power 5 | . 1 2 . . 2 Propulsion 6 | . . 3 . 1 2 Utility 2 | . . . . . 2 Weapon 6 | . . 1 . . 5 Highest Loss Streak 4 | . 1 3 . 1 4 Average Slot Usage (%) 97 | . 99 97 100 100 96 Engine 4 | . 12 4 . . 2 Core 6 | . 1 6 14 14 6 Wheel 22 | . 27 28 28 28 17 Storage 31 | . 25 28 28 28 35 Protection 4 | . 2 . . . 7 Energy Gun 1 | . 2 2 . . 1 Ballistic Gun 8 | . 18 . . 5 7 Ballistic Cannon 4 | . . 10 14 13 2 Impact Weapon 3 | . . . . . 6 Slashing Weapon 7 | . 6 11 14 8 5 Naked Turns . | . . . . . . Heaviest Build 120 | 10 43 44 74 75 120 Greatest Support 32 | 20 20 20 20 26 32 Greatest Overweight (x) 8 | . 3 2 3 3 8 Average Overweight (x) 2 | . . 1 2 2 3 Largest Inventory Capacity 32 | 6 16 16 20 20 32 Average Capacity 23 | 5 14 16 18 20 31 Most Carried 32 | 6 16 16 20 20 32 Average Carried 22 | 4 13 14 18 19 29 Final Capacity 32 | 6 16 16 20 20 32 Final Carried 32 | 6 15 16 20 20 32 Class Distribution -------------------- 55% | Hauler-Mutant 39% | Mutant 5% | Hauler-Skirmisher Dominant Class ---------------- Mutant | -10/Materials Mutant | -10/Mines Hauler-Mutant | -10/Exiles Hauler-Mutant | -9/Mines Hauler-Mutant | -8/Materials Resources | -11 -10 -10 -10 -9 -8 ----------- Run | Scr Mat Min Exi Min Mat Matter Collected 1645 | 268 282 274 20 104 697 Remotely . | . . . . . . Salvage Created 1726 | 99 634 85 . 91 817 Parts 89 | 1 29 4 . 13 42 Haulers Intercepted 4 | . 1 . . . 3 Recyclers Shooed 3 | . 2 . . . 1 Parts Field Recycled . | . . . . . . Retrieved Matter . | . . . . . . Parts Self-Destructed . | . . . . . . Prevented . | . . . . . . Kills | -11 -10 -10 -10 -9 -8 ------- Run | Scr Mat Min Exi Min Mat Combat Hostiles Destroyed 39 | . 9 7 . 6 17 Melee 7 | . 1 2 . . 4 Guns 14 | . 8 . . 1 5 Cannons 5 | . . 3 . . 2 AOE 11 | . . 2 . 5 4 Classes Destroyed 10 | 1 4 1 . 1 3 Worker 2 | . . . . . 2 Builder 1 | . 1 . . . . Hauler 4 | . 1 . . . 3 Recycler 6 | 1 3 . . . 2 Swarmer 14 | . 3 . . 3 8 Grunt 16 | . 6 1 . 2 7 Duelist 1 | . . . . 1 . Sentry 1 | . . . . . 1 Hunter 1 | . . . . . 1 Assembled 6 | . . 6 . . . Best Kill Streak 4 | 1 4 2 . 3 4 Combat Bots Only 4 | . 2 2 . 3 4 Max Kills in Single Turn 3 | 1 1 1 . 2 3 Gunslinging . | . . . . . . Exploded 3 | . . 1 . 2 3 Melee 1 | . 1 1 . . 1 Uniques/NPCs Destroyed . | . . . . . . Combat | -11 -10 -10 -10 -9 -8 -------- Run | Scr Mat Min Exi Min Mat Damage Taken 3240 | 16 491 497 . 98 2138 Core 745 | . 104 82 . 6 553 Absorbed by Shields . | . . . . . . Core Remaining (%) 61 | 100 . . . 23 . Volleys Fired 140 | 8 50 31 . 6 45 Largest 3 | 2 2 2 . 2 3 Hottest 100 | 60 40 100 . 58 78 Shots Fired 245 | 16 95 36 . 7 91 Gun 181 | 16 95 5 . 1 64 Cannon 50 | . . 23 . 1 26 Launcher 14 | . . 8 . 5 1 Special . | . . . . . . Kinetic 207 | 8 95 15 . 2 87 Thermal 6 | . . 5 . . 1 Explosive 14 | . . 8 . 5 1 Electromagnetic 18 | 8 . 8 . . 2 Robot Hit Streak 10 | 5 6 4 . 2 10 Robot Miss Streak 6 | 3 4 6 . 3 6 Penetration Max 1 | . . . . . 1 Secondary Targets . | . . . . . . Shots Hit Robots 186 | 9 67 18 . 2 90 Core Hits 81 | 2 28 11 . 8 32 Critical Hits 1 | . 1 . . . . Critical Kills . | . . . . . . Critical Parts Destroyed 1 | . 1 . . . . Melee Attacks 227 | . 42 9 . 5 171 Impact 68 | . . . . . 68 Slashing 159 | . 42 9 . 5 103 Piercing . | . . . . . . Sneak Attacks 12 | . 3 . . . 9 Combat Hostiles . | . . . . . . Follow-up Attacks 8 | . . . . . 8 Damage Inflicted 4694 | 152 826 658 . 399 2659 Guns 1216 | 121 510 16 . 17 552 Cannons 435 | . . 186 . 16 233 Explosions 875 | 31 . 281 . 366 197 Melee 2168 | . 316 175 . . 1677 Ramming . | . . . . . . Kinetic 1392 | 19 510 92 . 33 738 Thermal 130 | 31 . 16 . . 83 Explosive 783 | . . 281 . 366 136 Electromagnetic 221 | 102 . 94 . . 25 Impact 983 | . . . . . 983 Slashing 1185 | . 316 175 . . 694 Piercing . | . . . . . . Highest Corruption 9 | . . . . . 9 Average Corruption 8 | . . . . . 8 Corruption Purged . | . . . . . . Effects 67 | . . . . . 67 Message Errors 14 | . . . . . 14 Matter Fused 11 | . . . . . 11 Heat Flow Errors 9 | . . . . . 9 Energy Discharges 6 | . . . . . 6 Parts Rejected 1 | . . . . . 1 Data Loss (minor) 9 | . . . . . 9 Data Loss (major) 3 | . . . . . 3 Misfires 2 | . . . . . 2 Targeting Errors 12 | . . . . . 12 Overload Shots . | . . . . . . Overflow Damage 434 | 1 27 11 . 66 329 Projectiles 27 | . . . . . 27 Explosions 87 | 1 . . . 66 20 Melee 320 | . 27 11 . . 282 Knockbacks 7 | . . . . . 7 Impact 3 | . . . . . 3 Kinetic 3 | . . . . . 3 Secondary 1 | . . . . . 1 Self-Inflicted Damage 56 | 17 . . . 39 . Shots 2 | 1 . . . 1 . Rammed . | . . . . . . Targets Rammed . | . . . . . . Kicked . | . . . . . . Crushed . | . . . . . . Highest Temperature 534 | 52 34 209 . 3 534 Average Temperature 75 | 29 10 83 . 2 106 Received Heat Transfer 717 | . 210 51 . 6 450 Effects 7 | . . . . . 7 Shutdowns 1 | . . . . . 1 Short Circuit 1 | . . . . . 1 Damage (minor) 2 | . . . . . 2 Damage (major) 3 | . . . . . 3 Siege Activations . | . . . . . . Robots Corrupted . | . . . . . . Combat Hostiles . | . . . . . . Parts Fried 3 | . . . . . 3 Impact Corruptions 6 | . . . . . 6 Robots Melted . | . . . . . . Combat Hostiles . | . . . . . . Parts Melted . | . . . . . . Heat Transferred 174 | 50 . 37 . . 87 Parts Sabotaged . | . . . . . . Parts Stolen . | . . . . . . Parts Stripped . | . . . . . . Power Chain Reactions 2 | 1 . . . . 1 Missiles Intercepted . | . . . . . . Alert | -11 -10 -10 -10 -9 -8 ------- Run | Scr Mat Min Exi Min Mat Peak Influence 203 | 5 139 45 . 130 203 Average Influence 64 | 1 54 14 . 40 86 Maximum Alert Level 1 | . . . . . 1 Low Security (%) 98 | . . . . . . Level 1 1 | . . . . . . Level 2 . | . . . . . . Level 3 . | . . . . . . Level 4 . | . . . . . . Level 5 . | . . . . . . High Security . | . . . . . . Max Security . | . . . . . . Squads Dispatched 6 | . 1 . . . 5 Investigation 3 | . 1 . . . 2 Extermination . | . . . . . . Reinforcement 3 | . . . . . 3 Assault . | . . . . . . Garrison . | . . . . . . Intercept . | . . . . . . Construction Impeded . | . . . . . . Haulers Reinforced . | . . . . . . Stealth | -11 -10 -10 -10 -9 -8 --------- Run | Scr Mat Min Exi Min Mat Distress Signals 12 | . 2 5 . . 5 Communications Jammed . | . . . . . . Distress Signals . | . . . . . . Times Spotted 76 | . 17 13 . 6 40 Peak Tracking Total 6 | . 6 2 . 3 5 Tactical Retreats 14 | . 3 6 . . 5 Traps | -11 -10 -10 -10 -9 -8 ------- Run | Scr Mat Min Exi Min Mat Traps Triggered 3 | . 1 . . . 2 Indirectly . | . . . . . . Trap Hack Attempts . | . . . . . . Triggered . | . . . . . . Disarmed . | . . . . . . Reprogrammed . | . . . . . . Reused . | . . . . . . Traps Extracted . | . . . . . . Installed . | . . . . . . Triggered . | . . . . . . Machines | -11 -10 -10 -10 -9 -8 ---------- Run | Scr Mat Min Exi Min Mat Machines Disabled 1 | . . . . . 1 Max in Single Turn 1 | . . . . . 1 Machines Sabotaged . | . . . . . . Garrisons Compromised . | . . . . . . Overloaded Fab Kills . | . . . . . . Fab Network Shutdowns . | . . . . . . Hacking | -11 -10 -10 -10 -9 -8 --------- Run | Scr Mat Min Exi Min Mat Machines Accessed 17 | . 8 . 1 1 7 Terminals 13 | . 6 . . 1 6 Fabricators . | . . . . . . Repair Stations 1 | . 1 . . . . Recycling Units 1 | . 1 . . . . Scanalyzers 1 | . . . . . 1 Garrison Access . | . . . . . . Total Hacks 45 | . 22 . 1 3 19 Successful 29 | . 16 . 1 . 12 Failed 16 | . 6 . . 3 7 Catastrophic . | . . . . . . Database Lockouts . | . . . . . . Manual 29 | . 16 . 1 . 12 Terminals 37 | . 18 . . 3 16 Fabricators . | . . . . . . Repair Stations 2 | . 2 . . . . Recycling Units 2 | . 2 . . . . Scanalyzers 3 | . . . . . 3 Garrison Access . | . . . . . . Terminal Hacks 10 | . 5 . 1 . 4 Prototype ID Bank 2 | . 1 . . . 1 Terminal Index 1 | . 1 . . . . Unreport Threat 1 | . . . . . 1 Hauler Manifests 1 | . 1 . . . . Zone Layout 4 | . 2 . . . 2 EX-Prototype ID Bank 1 | . . . 1 . . Fabricator Hacks . | . . . . . . Repair Station Hacks 2 | . 2 . . . . Scan Component 1 | . 1 . . . . Repair 1 | . 1 . . . . Recycling Unit Hacks 1 | . 1 . . . . Retrieve Components 1 | . 1 . . . . Scanalyzer 3 | . . . . . 3 Insert Component 1 | . . . . . 1 Analyze 2 | . . . . . 2 Garrison Access Hacks . | . . . . . . Unauthorized Hacks 33 | . 21 . . . 12 Terminals 13 | . 8 . . . 5 Track 9 | . 5 . . . 4 Botnet 3 | . 2 . . . 1 Operators 1 | . 1 . . . . Fabricators . | . . . . . . Repair Stations . | . . . . . . Recycling Units . | . . . . . . Scanalyzers . | . . . . . . Garrison Access . | . . . . . . Data Cores Recovered . | . . . . . . Used . | . . . . . . Hacking Detections 14 | . 6 . . 1 7 Full Trace Events 1 | . . . . . 1 Feedback Events . | . . . . . . Feedback Blocked . | . . . . . . Robot Schematics Acquired . | . . . . . . Robots Built . | . . . . . . Matter . | . . . . . . Time . | . . . . . . Total Robot Build Rating . | . . . . . . Part Schematics Acquired 1 | . . . . . 1 Parts Built . | . . . . . . Matter . | . . . . . . Time . | . . . . . . Total Part Build Rating . | . . . . . . Parts Repaired 1 | . 1 . . . . Time 26 | . 26 . . . . Parts Recycled . | . . . . . . Recycled Matter . | . . . . . . Retrieved Matter . | . . . . . . Retrieved Components 2 | . 2 . . . . Parts Scanalyzed 1 | . . . . . 1 Part Schematics Acquired 1 | . . . . . 1 Parts Damaged . | . . . . . . Bothacking | -11 -10 -10 -10 -9 -8 ------------ Run | Scr Mat Min Exi Min Mat Used RIF Installer . | . . . . . . Robots Hacked . | . . . . . . Non-combat . | . . . . . . Combat . | . . . . . . Robot Hacks Applied . | . . . . . . Relay Couplers Released . | . . . . . . Robots Rewired . | . . . . . . Allies Hacked . | . . . . . . Hacks Repelled . | . . . . . . Allies | -11 -10 -10 -10 -9 -8 -------- Run | Scr Mat Min Exi Min Mat Total Allies . | . . . . . . Largest Group . | . . . . . . Highest-Rated Group . | . . . . . . Highest-Rated Ally . | . . . . . . Total Orders . | . . . . . . Ally Attacks . | . . . . . . Total Damage . | . . . . . . Kills . | . . . . . . Allies Corrupted . | . . . . . . Allies Melted . | . . . . . . Intel | -11 -10 -10 -10 -9 -8 ------- Run | Scr Mat Min Exi Min Mat Robot Analysis Total . | . . . . . . Derelict Logs Recovered 2 | . . 2 . . . Drone Launches . | . . . . . . Drone Recoveries . | . . . . . . Exploration | -11 -10 -10 -10 -9 -8 ------------- Run | Scr Mat Min Exi Min Mat Turns Passed 5037 | 79 1116 630 413 350 2449 Spaces Moved 3198 | 53 835 519 380 280 1131 Core 2 | 2 . . . . . Treads . | . . . . . . Legs . | . . . . . . Wheels 3196 | 51 835 519 380 280 1131 Hover . | . . . . . . Flight . | . . . . . . Fastest Speed 50 | 50 80 90 100 110 130 Average Speed 108 | 78 89 94 106 110 131 Slowest Speed 170 | 80 110 100 110 110 170 Overloaded Moves . | . . . . . . Propulsion Burnouts . | . . . . . . Robots Hopped . | . . . . . . Cave-ins Triggered 3 | . . . . . 3 Exploration Rate (%) 61 | 4 88 79 70 55 74 Regions Visited 5 Branch Regions 3 Pre-discovered Areas . | . . . . . . Known Exits Taken 1 | . . . 1 . . Unknown Exits Taken 4 | 1 1 1 . 1 . Scrap Searched 3 | . . 2 . 1 . Spaces Dug 80 | . 13 . . 2 65 Terrain Destroyed 179 | 4 13 39 . 38 85 Melee 78 | . 13 . . 2 63 Projectile 4 | . . . . . 4 AOE 97 | 4 . 39 . 36 18 Actions | -11 -10 -10 -10 -9 -8 --------- Run | Scr Mat Min Exi Min Mat Total 4098 | 72 1042 601 391 303 1689 Wait 363 | . 51 22 . 5 285 Move 3193 | 52 834 518 379 279 1131 Hop . | . . . . . . Pick Up 69 | 6 27 5 5 2 24 Fast Attach 19 | 6 5 2 . . 6 Attach 20 | . 3 4 . 1 12 Detach 3 | . . . . . 3 Swap 48 | . 13 8 2 4 21 Drop 32 | . 17 2 5 1 7 Fire 140 | 8 50 31 . 6 45 Melee 211 | . 42 9 . 5 155 Ram . | . . . . . . Kick . | . . . . . . Crush . | . . . . . . Escape Stasis . | . . . . . . Rewire . | . . . . . . Trap . | . . . . . . Miscellaneous . | . . . . . . Route ------- -11/Scrapyard -10/Materials (discovered 3 exits: [*Mat x2] / [*Min]) -10/Mines (discovered 3 exits: [*Mat x2] / *Exi) -10/Exiles (discovered 2 exits: *Min x2) -9/Mines (discovered 2 exits: *Mat x2) -8/Materials (discovered 2 exits: [*Fac x2]) History --------- Turn | Location | Event 20 | -11/Scrapyard | Discovered new exit (range 16) 80 | -11/Scrapyard | Entered Materials 303 | -10/Materials | Build established: Mutant 427 | -10/Materials | Discovered new exit (range 13) 696 | -10/Materials | Discovered new exit (range 7) 932 | -10/Materials | Repaired Lrg. Storage Unit 1152 | -10/Materials | Discovered new exit (range 16) 1196 | -10/Materials | Entered Mines 1225 | -10/Mines | Assembled infested the area 1370 | -10/Mines | Core integrity fell below 50% 1427 | -10/Mines | Lost 3 parts (1p2n) 1431 | -10/Mines | Learned Materials terminal intel 1476 | -10/Mines | Discovered new exit (range 10) 1572 | -10/Mines | Deemed a non-threat by the Exiles lab entrance 1572 | -10/Mines | Discovered new exit (range 5) 1590 | -10/Mines | Received a Rocket Launcher from a helpful Derelict 1650 | -10/Mines | Discovered new exit (range 7) 1826 | -10/Mines | Entered Exiles 1827 | -10/Exiles | Identified exit to Mines 1853 | -10/Exiles | Met 8R-AWN 1865 | -10/Exiles | Met EX-HEX 1917 | -10/Exiles | Met EX-DEC 2075 | -10/Exiles | Met EX-BIN 2090 | -10/Exiles | Aligned with FarCom system 2091 | -10/Exiles | Given EX-Vault access code 2116 | -10/Exiles | Opened EX-Vault 2125 | -10/Exiles | Found Supersonic Drone Bay 2128 | -10/Exiles | Found Superbattery 2133 | -10/Exiles | Found AWS/Autocannon 2157 | -10/Exiles | Warned to stay clear of 0b10 Research branches 2239 | -10/Exiles | Stole three prototypes: Superbattery, Supersonic Drone Bay, AWS/Autocannon 2239 | -10/Exiles | Entered Mines 2250 | -9/Mines | Met a Derelict bent on vengeance 2276 | -9/Mines | Build established: Hauler-Mutant 2421 | -9/Mines | Discovered new exit (range 14) 2459 | -9/Mines | Discovered new exit (range 8) 2589 | -9/Mines | Entered Materials 2589 | -8/Materials | Evolved 4 slots: Utility x3, Weapon x1 2590 | -8/Materials | Loaded intel: 12 terminal locations 3415 | -8/Materials | Discovered new exit (range 10) 3482 | -8/Materials | Crushed by falling debris 3489 | -8/Materials | Crushed by falling debris 3489 | -8/Materials | Core integrity fell below 50% 3497 | -8/Materials | Crushed by falling debris 3528 | -8/Materials | Lost 4 parts (1n3w) 4020 | -8/Materials | Discovered new exit (range 16) 4245 | -8/Materials | Core integrity fell below 20% 5038 | -8/Materials | Destroyed by Y-45 Defender with Beam Rifle Last Messages --------------- 04658_ U-05 Engineer builds a Wall. 04705_ System corrupted: Matter fused (-9). 04734_ System corrupted: Matter fused (-10). 04761_ System corrupted: Matter fused (-9). 04780_ YCXSH6HRSO5 #9,JRJJUNT, GVTL67P6 04813_ System corrupted: Heat flow error (+181). 04849_ U-05 Engineer builds a Wall. 04860_ System corrupted: Component data lost. 04885_ System corrupted: Matter fused (-5). 04900_ System corrupted: Energy discharge (-32). 04928_ O-16 Technician: "IFF HANDSHAKE FAILED. SECURING TERMINAL." 04937_ System corrupted: Matter fused (-8). 04941_ ALERT: Hostiles spotted, dispatching reinforcements to Terminal M007. 04944_ U-05 Engineer builds a Wall. 04953_ C 05035_ Lgt. Ion Engine destroyed. Map ----- +----------------------------------------------------+ | #?????## """"""""" """"""""" """"""""" ## "" | | ######## """ """ """ """ """ """ ## | | = # | | + ] | | #####"T"###+#########+########+#+# ] | | #???##### # ## # | | ######## ##???????# # """ """ ## # | | # #????????# """ # "T" """ ## # | | # #????????# """ ! # """ ## "! | | """ # #????????# """ # """ ## #### | | """" # #????????# """ # """ ## #??? | | """" ??# #????????# """ # ## #??? | | """" ??# #????????# # ## #??? | | """ ???# #???????## ##########"# ##?? | | ????# #??????##"##########???????##"####"#?? | | ##?????# #?????## ##??????## #???????###??## #? | | ???????# #########"#????????##??????????????##? | | ???????# # ##??????????????????????????? | | ???????# # """"" #???????????????????????????? | | ######## # """"" #???????????????????????????? | | # """"" #???????????????????????????? | | + """"" #???????????????????????????? | | w # """"" #???????????????????????????? | | #+######### # """"" ####????????????????????????? | | #?# # """"" ##Y####?????????????????????? | | #?# # # #u@ #?????????????????????? | | #?# ############YT #?????????????????????? | | """ """ #?# ############u #?????????????????????? | | """ """ #?#h u #?????????????????????? | | """ """ #?# ####### #### !/#?????????????????????? | | #?# #?????# ???# !/#?????????????????????? | | #?# #?????# ???# ?????????????????????? | | ###+####### #????? ???##+###????????????????????? | | # #?### #????? ?????????????????????????????? | | "" "##???# #???? ?????????????????????????????? | | "" # ##??# #???? ??????????????????????????????? | | "" ####### #???? ??????????????????????????????? | | # # ????###??????????????????????????????? | | "" # # ?????????????????????????????????????? | | "" + # ?????????????????????????????????????? | | "" # # ?????????????????????????????????????? | | " % # ?????????????????????????????????????? | | "#% ## #????????????????????????????????????? | | Y" "# #? #????????????????????????????????????? | | "" ## #? #????????????????????????????????????? | | ? ?# #? #????????????????????????????????????? | | ?###?# ## #????????????????????????????????????? | | ###### ## #????????????????????????????????????? | | # ##/#########????????????????????????????? | | """# w # #????????????????????????????? | +----------------------------------------------------+ Best States ------------- Heat Dissipation 31 Energy Generation 14 Energy Capacity 250 Matter Stores 300 Matter Capacity 300 Sight Range 16 Terrain Scan Density 10 Armor Coverage 225 Evasion (%) 44 Item Schematics ----------------- Hcp. Storage Unit | -8/Materials | Scanalyzed Robot Schematics ------------------ None Fabricated ------------ Nothing Alien Tech Used ----------------- None Achievements -------------- None Challenges ------------ None Game ------ Seed SurgeBackupCompactor Manual? 0 Play Time 01:10:40 Cumulative 819.1 hours Start 2019.11.11 @ 23:27:16 End 2019.11.12 @ 00:48:24 Sessions 1 Manual Loads 0 Difficulty Rogue Special Mode None Game No. 321 Rogue 321 Adventurer 0 Explorer 0 Win Type - Total 21 Types 11/1/7/0/0/0/2 Lore% 95 Gallery% 95 Achievement% 79 Wizard Run 0 Options --------- ASCII 0 Keyboard 1 Movement Vi Keybinds 0 Fullscreen 0 Font 12/Crisp Map View 76x50 Tactical HUD 1 Map Filters NONE Filters NONE Steam 1 RUN: 07d74baa-8147-4001-8bca-2ac02ed43cc1